[Event "WYCC 2018 G18"]
[Site "Halkidiki"]
[Date "2018.10.26"]
[Round "7"]
[White "Limanovska, Elizabete"]
[Black "Kieu, Bich Thuy"]
[Result "1/2-1/2"]
[ECO "B09"]
[WhiteElo "2072"]
[BlackElo "1913"]
[Annotator "NA"]
[PlyCount "101"]
[EventDate "2018.10.20"]
[EventType "swiss"]
[EventCountry "GRE"]
[SourceTitle "playchess.com"]
[Source "ChessBase"]
[SourceQuality "1"]
[TimeControl "40/5400+30:1800+30"]

1. e4 {[%emt 0:00:00]} g6 {[%emt 0:00:00]} 2. d4 {[%emt 0:00:00]} Bg7 {[%emt 0:00:00]} 3. Nc3 {[%emt 0:00:00]} d6 {[%emt 0:00:00]} 4. f4 {[%emt 0:00:00]} Nf6 $14 {[%emt 0:00:07] LiveBook: 5440 Games} 5. Nf3 {[%emt 0:00:00]} O-O {[%emt 0:00:16]} 6. Bd3 {[%emt 0:00:04]} Na6 {[%emt 0:01:28]} 7. O-O {[%emt 0:01:11]} c5 {[%emt 0:00:35]} 8. d5 {[%emt 0:00:06]} Bg4 {[%emt 0:01:23]} 9. h3 {[%emt 0:14:36]} Bxf3 {[%emt 0:00:42]} 10. Rxf3 {[%emt 0:06:19]} Nc7 {[%emt 0:01:22]} 11. a4 {[%emt 0:07:01]} a6 {[%emt 0:03:35]} 12. Qe1 {[%emt 0:06:52]} e6 {[%emt 0:07:14]} 13. dxe6 {[%emt 0:03:21]} Nxe6 {[%emt 0:06:12]} 14. Be3 {[%emt 0:00:36]} d5 {[%emt 0:07:04]} 15. exd5 {[%emt 0:05:44]} Nxd5 {[%emt 0:00:38]} 16. Nxd5 {[%emt 0:01:32]} Qxd5 {[%emt 0:00:08]} 17. Rd1 {[%emt 0:00:17]} Rad8 {[%emt 0:02:18]} 18. c3 {[%emt 0:05:36]} f5 {[%emt 0:07:12]} 19. Bc2 {[%emt 0:02:43]} Qc6 {[%emt 0:03:39]} 20. Rf2 {[%emt 0:04:51]} c4 {[%emt 0:04:15]} 21. g4 {[%emt 0:04:03]} Rxd1 {[%emt 0:03:48]} 22. Qxd1 {[%emt 0:00:13]} fxg4 {[%emt 0:08:23]} 23. Qxg4 {[%emt 0:07:02]} Bh6 {[%emt 0:10:58]} 24. h4 {[%emt 0:08:32]} Ng7 {[%emt 0:06:41]} 25. Bd4 {[%emt 0:01:13]} Qe6 {[%emt 0:01:52]} 26. Qg2 {[%emt 0:04:33]} Bxf4 {[%emt 0:08:47]} 27. Re2 {[%emt 0:01:24]} Qd7 {[%emt 0:01:35]} 28. Be4 {[%emt 0:01:08]} Re8 {[%emt 0:06:14]} 29. Bd5+ {[%emt 0:05:21]} Kh8 {[%emt 0:00:08]} 30. Bxc4 {[%emt 0:00:31]} b5 {[%emt 0:03:07]} 31. axb5 {[%emt 0:01:18]} axb5 {[%emt 0:00:05]} 32. Bd3 {[%emt 0:01:57]} Kg8 {[%emt 0:02:22]} 33. Be4 {[%emt 0:00:33]} Rd8 {[%emt 0:01:52]} 34. Rf2 {[%emt 0:03:36]} Qd6 {[%emt 0:00:50]} 35. Qf3 {[%emt 0:00:42]} Ne6 {[%emt 0:01:26]} 36. h5 {[%emt 0:01:16]} Nxd4 {[%emt 0:00:39]} 37. cxd4 {[%emt 0:00:35]} Rf8 {[%emt 0:00:07]} 38. Bd5+ {[%emt 0:01:52]} Kg7 {[%emt 0:00:40]} 39. Kf1 {[%emt 0:01:54]} g5 {[%emt 0:00:43]} 40. Qe4 {[%emt 0:00:00]} Rd8 {[%emt 0:00:00]} 41. Bc6 {[%emt 0:03:36]} Qxd4 {[%emt 0:02:29]} 42. Qxd4+ {[%emt 0:00:53]} Rxd4 {[%emt 0:00:06]} 43. Bxb5 {[%emt 0:00:12]} Kh6 {[%emt 0:00:48]} 44. Be2 {[%emt 0:01:54]} Rb4 {[%emt 0:00:50]} 45. Bf3 {[%emt 0:01:19]} Be5 {[%emt 0:07:05]} 46. Re2 {[%emt 0:00:54]} Bf6 {[%emt 0:02:12]} 47. Re6 {[%emt 0:02:04]} Kg7 {[%emt 0:00:38]} 48. Kg2 {[%emt 0:01:07]} Rxb2+ {[%emt 0:01:01]} 49. Kg3 {[%emt 0:00:25]} Rb4 {[%emt 0:04:49]} 50. Ra6 {[%emt 0:03:36]} Be5+ {[%emt 0:01:29]} 51. Kf2 {[%emt 0:00:33]} 1/2-1/2

[Event "WYCC 2018 G18"]
[Site "Halkidiki"]
[Date "2018.10.26"]
[Round "7"]
[White "Vanduyfhuys, Daria"]
[Black "Perminaite, Guoda"]
[Result "0-1"]
[ECO "D55"]
[WhiteElo "2058"]
[BlackElo "1840"]
[Annotator "NA"]
[PlyCount "110"]
[EventDate "2018.10.20"]
[EventType "swiss"]
[EventCountry "GRE"]
[SourceTitle "playchess.com"]
[Source "ChessBase"]
[SourceQuality "1"]
[TimeControl "40/5400+30:1800+30"]

1. d4 {[%emt 0:00:00]} d5 {[%emt 0:00:00]} 2. c4 {[%emt 0:00:00]} e6 {[%emt 0:00:00]} 3. Nf3 {[%emt 0:00:00]} Nf6 {[%emt 0:00:04]} 4. Nc3 {[%emt 0:00:07]} Be7 {[%emt 0:00:11]} 5. Bg5 {[%emt 0:00:22]} O-O {[%emt 0:00:23]} 6. e3 {[%emt 0:00:10]} b6 {[%emt 0:00:26]} 7. Rc1 {[%emt 0:00:51]} Bb7 {[%emt 0:01:00]} 8. Bxf6 {[%emt 0:00:28]} Bxf6 {[%emt 0:00:46]} 9. cxd5 {[%emt 0:00:05]} exd5 {[%emt 0:01:40]} 10. b4 {[%emt 0:00:14]} c6 {[%emt 0:31:16]} 11. Be2 {[%emt 0:01:03]} Qd6 {[%emt 0:00:46]} 12. Qb3 {[%emt 0:01:39]} Be7 {[%emt 0:04:09]} 13. Rb1 {[%emt 0:07:54]} Nd7 {[%emt 0:02:47]} 14. O-O {[%emt 0:00:28]} Nf6 {[%emt 0:10:05]} 15. Rfd1 {[%emt 0:04:16]} Rfd8 {[%emt 0:07:56]} 16. a4 {[%emt 0:17:19]} Rab8 {[%emt 0:02:38]} 17. a5 {[%emt 0:15:26]} bxa5 {[%emt 0:05:37]} 18. bxa5 {[%emt 0:01:52]} Ba6 {[%emt 0:00:43]} 19. Qa2 {[%emt 0:02:12]} Bxe2 {[%emt 0:00:23]} 20. Nxe2 {[%emt 0:00:19]} c5 {[%emt 0:02:55]} 21. dxc5 {[%emt 0:00:33]} Qxc5 {[%emt 0:00:08]} 22. Rbc1 {[%emt 0:01:33]} Qd6 {[%emt 0:04:01]} 23. Nfd4 {[%emt 0:07:36]} Rdc8 {[%emt 0:02:16]} 24. Nc3 {[%emt 0:05:03]} Qa3 {[%emt 0:04:57]} 25. Qxa3 {[%emt 0:26:39]} Bxa3 {[%emt 0:00:04]} 26. Rc2 {[%emt 0:00:04]} Bb4 {[%emt 0:01:57]} 27. Nxd5 {[%emt 0:00:49]} Nxd5 {[%emt 0:01:01]} 28. Nc6 {[%emt 0:00:49]} Bf8 {[%emt 0:08:16]} 29. Rdc1 {[%emt 0:05:30]} Rb7 {[%emt 0:00:52]} 30. e4 {[%emt 0:00:41]} Nc7 {[%emt 0:02:32]} 31. f4 {[%emt 0:00:53]} Re8 {[%emt 0:01:56]} 32. Ne5 {[%emt 0:00:34]} Ne6 {[%emt 0:00:27]} 33. g3 {[%emt 0:00:29]} g6 {[%emt 0:01:07]} 34. Rc8 {[%emt 0:00:27]} Rxc8 {[%emt 0:01:07]} 35. Rxc8 {[%emt 0:00:04]} Rc7 {[%emt 0:01:09]} 36. Ra8 {[%emt 0:00:27]} Kg7 {[%emt 0:00:10]} 37. f5 {[%emt 0:00:58]} gxf5 {[%emt 0:01:20]} 38. exf5 {[%emt 0:00:03]} Bc5+ {[%emt 0:00:48]} 39. Kg2 {[%emt 0:00:07]} Nd4 {[%emt 0:00:19]} 40. g4 {[%emt 0:00:00]} Nb3 {[%emt 0:00:00]} 41. g5 {[%emt 0:01:42]} f6 {[%emt 0:02:57]} 42. Ng4 {[%emt 0:00:22]} fxg5 {[%emt 0:01:58]} 43. Kf3 {[%emt 0:06:18]} h5 {[%emt 0:03:58]} 44. Ne5 {[%emt 0:01:01]} Kf6 {[%emt 0:00:51]} 45. Ke4 {[%emt 0:01:27]} Bd6 {[%emt 0:02:58]} 46. Nf3 {[%emt 0:00:11]} Nxa5 {[%emt 0:02:33]} 47. Kd5 {[%emt 0:00:21]} Be7 {[%emt 0:01:36]} 48. Nd4 {[%emt 0:00:56]} Rc5+ {[%emt 0:00:25]} 49. Ke4 {[%emt 0:00:06]} Re5+ {[%emt 0:00:18]} 50. Kd3 {[%emt 0:00:15]} Bc5 {[%emt 0:01:52]} 51. Ne6 {[%emt 0:00:06]} Kxf5 {[%emt 0:02:04]} 52. Nxc5 {[%emt 0:00:06]} Rxc5 {[%emt 0:00:19]} 53. Rxa7 {[%emt 0:00:08]} Nc6 {[%emt 0:00:49]} 54. Ra4 {[%emt 0:00:28]} Re5 {[%emt 0:00:40]} 55. Rc4 {[%emt 0:00:43]} Ne7 0-1

[Event "WYCC 2018 G18"]
[Site "Halkidiki"]
[Date "2018.10.26"]
[Round "7"]
[White "Cvitan, Ena"]
[Black "Injac, Teodora"]
[Result "0-1"]
[ECO "A45"]
[WhiteElo "2034"]
[BlackElo "2258"]
[Annotator "NA"]
[PlyCount "92"]
[EventDate "2018.10.20"]
[EventType "swiss"]
[EventCountry "GRE"]
[SourceTitle "playchess.com"]
[Source "ChessBase"]
[SourceQuality "1"]
[TimeControl "40/5400+30:1800+30"]

1. d4 {[%emt 0:00:00]} Nf6 {[%emt 0:00:00]} 2. Bf4 {[%emt 0:00:00]} c5 {[%emt 0:04:40]} 3. e3 {[%emt 0:00:22]} g6 {[%emt 0:00:48]} 4. c3 {[%emt 0:04:37]} cxd4 {[%emt 0:03:57]} 5. exd4 {[%emt 0:02:07]} Bg7 {[%emt 0:00:18]} 6. Nf3 {[%emt 0:01:59]} O-O {[%emt 0:00:35]} 7. Bd3 $11 {[%emt 0:01:09] LiveBook: 4 Games} d6 {[%emt 0:00:57]} 8. h3 {[%emt 0:13:27]} Nc6 {[%emt 0:01:53]} 9. O-O {[%emt 0:01:11]} Re8 {[%emt 0:12:58]} 10. Re1 {[%emt 0:05:08]} e5 {[%emt 0:18:48]} 11. dxe5 {[%emt 0:22:34]} dxe5 {[%emt 0:00:16]} 12. Bxe5 {[%emt 0:04:05]} Nxe5 {[%emt 0:00:43]} 13. Nxe5 {[%emt 0:03:13]} Nh5 {[%emt 0:10:31]} 14. Nf3 {[%emt 0:01:04]} Rxe1+ {[%emt 0:00:09]} 15. Nxe1 {[%emt 0:00:08]} Nf4 {[%emt 0:02:48]} 16. Qf3 {[%emt 0:07:07]} Nxd3 {[%emt 0:10:33]} 17. Nxd3 {[%emt 0:03:07]} Bf5 {[%emt 0:00:18]} 18. Nf4 {[%emt 0:01:59]} Qb6 {[%emt 0:00:38]} 19. Qe2 {[%emt 0:03:07]} Qd6 {[%emt 0:01:11]} 20. Qd2 {[%emt 0:02:55]} Qxd2 {[%emt 0:11:19]} 21. Nxd2 {[%emt 0:00:02]} Bh6 {[%emt 0:00:07]} 22. g3 {[%emt 0:00:16]} Re8 {[%emt 0:05:30]} 23. b3 {[%emt 0:05:30]} Bxf4 {[%emt 0:01:01]} 24. gxf4 {[%emt 0:00:08]} Bxh3 {[%emt 0:01:03]} 25. c4 {[%emt 0:03:23]} Re2 {[%emt 0:02:07]} 26. Nf3 {[%emt 0:00:14]} h6 {[%emt 0:01:47]} 27. Re1 {[%emt 0:02:47]} Rxe1+ {[%emt 0:04:14]} 28. Nxe1 {[%emt 0:00:01]} Kf8 {[%emt 0:01:22]} 29. c5 {[%emt 0:03:23]} Ke7 {[%emt 0:00:12]} 30. Nf3 {[%emt 0:00:43]} Ke6 {[%emt 0:00:55]} 31. Ne5 {[%emt 0:01:51]} Kd5 {[%emt 0:00:41]} 32. Nxf7 {[%emt 0:01:10]} Kxc5 {[%emt 0:00:59]} 33. Nxh6 {[%emt 0:00:12]} Be6 {[%emt 0:00:56]} 34. Kg2 {[%emt 0:00:14]} Kb4 {[%emt 0:00:18]} 35. Kg3 {[%emt 0:00:35]} Ka3 {[%emt 0:01:09]} 36. Kh4 {[%emt 0:00:34]} Kxa2 {[%emt 0:01:25]} 37. b4 {[%emt 0:01:11]} Kb3 {[%emt 0:00:20]} 38. Kg5 {[%emt 0:00:10]} Kxb4 {[%emt 0:00:16]} 39. Kxg6 {[%emt 0:00:21]} a5 {[%emt 0:00:15]} 40. f5 {[%emt 0:00:00]} Bb3 {[%emt 0:00:00]} 41. f6 {[%emt 0:00:58]} a4 {[%emt 0:01:50]} 42. f4 {[%emt 0:00:48]} a3 {[%emt 0:00:54]} 43. f5 {[%emt 0:00:59]} a2 {[%emt 0:00:19]} 44. f7 {[%emt 0:00:04]} Bxf7+ {[%emt 0:00:10]} 45. Kxf7 {[%emt 0:01:10]} a1=Q {[%emt 0:00:11]} 46. f6 {[%emt 0:00:11]} b5 {[%emt 0:08:35]} 0-1

[Event "WYCC 2018 G18"]
[Site "Halkidiki"]
[Date "2018.10.26"]
[Round "7"]
[White "Hng, Mei-En Emmanuelle"]
[Black "Du, Yuxin"]
[Result "1-0"]
[ECO "B12"]
[WhiteElo "2020"]
[BlackElo "2011"]
[Annotator "NA"]
[PlyCount "67"]
[EventDate "2018.10.20"]
[EventType "swiss"]
[EventCountry "GRE"]
[SourceTitle "playchess.com"]
[Source "ChessBase"]
[SourceQuality "1"]
[TimeControl "40/5400+30:1800+30"]

1. e4 {[%emt 0:00:00]} c6 {[%emt 0:00:00]} 2. d4 {[%emt 0:00:00]} d5 {[%emt 0:00:00]} 3. e5 {[%emt 0:00:00]} Bf5 {[%emt 0:00:01]} 4. h4 {[%emt 0:00:00]} h5 {[%emt 0:02:44]} 5. c4 {[%emt 0:00:03]} e6 {[%emt 0:00:15]} 6. Nc3 {[%emt 0:00:08]} Nd7 {[%emt 0:01:43]} 7. Nf3 {[%emt 0:06:20]} Ne7 {[%emt 0:09:18]} 8. Bg5 {[%emt 0:05:34]} dxc4 {[%emt 0:35:53]} 9. Bxc4 {[%emt 0:01:22]} Qb6 {[%emt 0:03:07]} 10. Qd2 {[%emt 0:22:11]} Nd5 {[%emt 0:04:27]} 11. O-O {[%emt 0:03:44]} f6 {[%emt 0:18:10]} 12. Be3 {[%emt 0:14:23]} Kf7 {[%emt 0:06:34]} 13. Bd3 {[%emt 0:06:24]} Bxd3 {[%emt 0:02:19]} 14. Qxd3 {[%emt 0:00:05]} Be7 {[%emt 0:02:44]} 15. Rfe1 {[%emt 0:05:02]} Rac8 {[%emt 0:07:28]} 16. Bd2 {[%emt 0:03:22]} f5 {[%emt 0:00:43]} 17. Bg5 {[%emt 0:01:23]} g6 {[%emt 0:01:37]} 18. Bxe7 {[%emt 0:01:08]} Kxe7 {[%emt 0:00:06]} 19. Nxd5+ {[%emt 0:01:00]} cxd5 {[%emt 0:00:05]} 20. Qa3+ {[%emt 0:00:17]} Ke8 {[%emt 0:01:35]} 21. Rac1 {[%emt 0:00:21]} Rc6 {[%emt 0:01:04]} 22. Rxc6 {[%emt 0:02:43]} bxc6 {[%emt 0:00:13]} 23. Rc1 {[%emt 0:01:44]} Rh7 {[%emt 0:00:42]} 24. Qd6 {[%emt 0:02:20]} c5 {[%emt 0:00:30]} 25. dxc5 {[%emt 0:00:21]} Qxb2 {[%emt 0:00:34]} 26. Qxe6+ {[%emt 0:00:30]} Re7 {[%emt 0:00:30]} 27. Qxg6+ {[%emt 0:01:24]} Kd8 {[%emt 0:00:06]} 28. Re1 {[%emt 0:02:11]} Nxc5 {[%emt 0:00:56]} 29. Qd6+ {[%emt 0:00:26]} Nd7 {[%emt 0:00:23]} 30. Qxd5 {[%emt 0:00:53]} Ke8 {[%emt 0:00:35]} 31. e6 {[%emt 0:00:36]} Nb6 {[%emt 0:00:31]} 32. Qxf5 {[%emt 0:01:10]} Qxa2 {[%emt 0:00:27]} 33. Qxh5+ {[%emt 0:00:13]} Kd8 {[%emt 0:00:08]} 34. Rd1+ {[%emt 0:00:13]} 1-0

[Event "WYCC 2018 G18"]
[Site "Halkidiki"]
[Date "2018.10.26"]
[Round "7"]
[White "Li, Yilin"]
[Black "Tonso, Liina"]
[Result "1/2-1/2"]
[ECO "C01"]
[WhiteElo "1993"]
[BlackElo "1805"]
[Annotator "NA"]
[PlyCount "70"]
[EventDate "2018.10.20"]
[EventType "swiss"]
[EventCountry "GRE"]
[SourceTitle "playchess.com"]
[Source "ChessBase"]
[SourceQuality "1"]
[TimeControl "40/5400+30:1800+30"]

1. e4 {[%emt 0:01:54]} e6 {[%emt 0:00:00]} 2. d4 {[%emt 0:00:07]} d5 {[%emt 0:00:00]} 3. exd5 {[%emt 0:00:05]} exd5 {[%emt 0:00:00]} 4. Bd3 {[%emt 0:00:07]} Nf6 {[%emt 0:01:14]} 5. Bf4 {[%emt 0:02:26]} Be7 {[%emt 0:03:38]} 6. Nf3 {[%emt 0:01:46]} O-O {[%emt 0:03:50]} 7. O-O {[%emt 0:00:05]} c5 {[%emt 0:08:49]} 8. c3 {[%emt 0:04:29]} Nc6 {[%emt 0:03:23]} 9. h3 {[%emt 0:01:54]} Qb6 {[%emt 0:07:29]} 10. dxc5 {[%emt 0:07:37]} Bxc5 {[%emt 0:02:30]} 11. b4 {[%emt 0:00:03]} Be7 {[%emt 0:02:16]} 12. a3 {[%emt 0:01:25]} h6 {[%emt 0:11:43]} 13. Re1 {[%emt 0:04:33]} Re8 {[%emt 0:04:12]} 14. Ra2 {[%emt 0:01:18]} Bd7 {[%emt 0:04:18]} 15. Rae2 {[%emt 0:01:20]} Bf8 {[%emt 0:03:42]} 16. Nbd2 {[%emt 0:01:47]} Rxe2 {[%emt 0:05:13]} 17. Rxe2 {[%emt 0:00:32]} a5 {[%emt 0:02:11]} 18. Ne5 {[%emt 0:09:46]} axb4 {[%emt 0:04:32]} 19. axb4 {[%emt 0:01:40]} Be6 {[%emt 0:03:47]} 20. Nb3 {[%emt 0:08:39]} Rd8 {[%emt 0:04:02]} 21. Be3 {[%emt 0:04:01]} Qc7 {[%emt 0:01:11]} 22. Nxc6 {[%emt 0:00:30]} Qxc6 {[%emt 0:01:54]} 23. Bd4 {[%emt 0:02:57]} Nd7 {[%emt 0:04:44]} 24. Ra2 {[%emt 0:00:42]} b6 {[%emt 0:01:14]} 25. Qa1 {[%emt 0:05:53]} Be7 {[%emt 0:01:35]} 26. Ra7 {[%emt 0:07:39]} Bf6 {[%emt 0:01:20]} 27. Bxf6 {[%emt 0:01:39]} Nxf6 {[%emt 0:01:06]} 28. Nd4 {[%emt 0:00:34]} Qd6 {[%emt 0:01:35]} 29. Qa6 {[%emt 0:02:56]} Ne4 {[%emt 0:01:25]} 30. Nb5 {[%emt 0:05:26]} Qf4 {[%emt 0:02:13]} 31. Qxb6 {[%emt 0:00:11]} Qc1+ {[%emt 0:01:09]} 32. Kh2 {[%emt 0:00:02]} Qf4+ {[%emt 0:01:15]} 33. Kg1 {[%emt 0:05:45]} Qc1+ {[%emt 0:00:16]} 34. Kh2 {[%emt 0:05:51]} Qf4+ {[%emt 0:00:41]} 35. Kg1 {[%emt 0:00:57]} Qc1+ {[%emt 0:00:38]} 1/2-1/2

[Event "WYCC 2018 G18"]
[Site "Halkidiki"]
[Date "2018.10.26"]
[Round "7"]
[White "Hamedi Nia, Vesal"]
[Black "Chitlange Sakshi"]
[Result "0-1"]
[ECO "E11"]
[WhiteElo "1987"]
[BlackElo "2237"]
[Annotator "NA"]
[PlyCount "122"]
[EventDate "2018.10.20"]
[EventType "swiss"]
[EventCountry "GRE"]
[SourceTitle "playchess.com"]
[Source "ChessBase"]
[SourceQuality "1"]
[TimeControl "40/5400+30:1800+30"]

1. d4 {[%emt 0:00:00]} Nf6 {[%emt 0:00:00]} 2. c4 {[%emt 0:00:00]} e6 {[%emt 0:00:00]} 3. Nf3 {[%emt 0:00:05]} Bb4+ {[%emt 0:00:16]} 4. Nbd2 {[%emt 0:00:21]} b6 {[%emt 0:00:28]} 5. a3 {[%emt 0:00:12]} Bxd2+ {[%emt 0:00:05]} 6. Qxd2 {[%emt 0:00:02]} Bb7 {[%emt 0:00:08]} 7. e3 {[%emt 0:00:15]} O-O {[%emt 0:00:40]} 8. Be2 {[%emt 0:00:03]} Ne4 {[%emt 0:00:22]} 9. Qc2 {[%emt 0:00:05]} f5 {[%emt 0:00:11]} 10. O-O {[%emt 0:00:40]} d6 {[%emt 0:00:36]} 11. b4 {[%emt 0:00:13]} Nd7 {[%emt 0:00:12]} 12. d5 {[%emt 0:01:20]} e5 {[%emt 0:01:13]} 13. Nd2 {[%emt 0:04:28]} Nxd2 {[%emt 0:02:17]} 14. Qxd2 {[%emt 0:00:11]} Qh4 {[%emt 0:05:19]} 15. f4 {[%emt 0:07:53]} Rae8 {[%emt 0:05:57]} 16. Bb2 {[%emt 0:06:20]} Re7 {[%emt 0:02:42]} 17. Rf3 {[%emt 0:08:28]} Ree8 {[%emt 0:09:34]} 18. Raf1 {[%emt 0:09:56]} Bc8 {[%emt 0:01:24]} 19. Bd1 {[%emt 0:02:20]} Qe7 {[%emt 0:01:26]} 20. Bc2 {[%emt 0:07:09]} Ba6 {[%emt 0:07:25]} 21. Qc3 {[%emt 0:05:29]} e4 {[%emt 0:18:57]} 22. Rg3 {[%emt 0:04:26]} Nf6 {[%emt 0:01:37]} 23. Ba4 {[%emt 0:02:20]} Rd8 {[%emt 0:01:49]} 24. Bb3 {[%emt 0:07:29]} h6 {[%emt 0:06:51]} 25. Rc1 {[%emt 0:03:04]} Kh7 {[%emt 0:01:48]} 26. Bd1 {[%emt 0:11:52]} Bb7 {[%emt 0:06:37]} 27. Qb3 {[%emt 0:02:26]} Rf7 {[%emt 0:03:40]} 28. Bd4 {[%emt 0:00:19]} c6 {[%emt 0:07:55]} 29. dxc6 {[%emt 0:01:00]} Bxc6 {[%emt 0:00:02]} 30. Qb2 {[%emt 0:00:43]} Bd7 {[%emt 0:03:16]} 31. c5 {[%emt 0:01:46]} bxc5 {[%emt 0:02:21]} 32. bxc5 {[%emt 0:00:04]} Bc6 {[%emt 0:00:35]} 33. Bb3 {[%emt 0:11:40]} d5 {[%emt 0:00:24]} 34. Qc2 {[%emt 0:01:22]} Qd7 {[%emt 0:02:16]} 35. Be5 {[%emt 0:00:23]} Qe8 {[%emt 0:06:17]} 36. Qc3 {[%emt 0:00:22]} Ng4 {[%emt 0:00:46]} 37. Bd4 {[%emt 0:00:45]} Rb8 {[%emt 0:00:33]} 38. Bd1 {[%emt 0:00:25]} Nf6 {[%emt 0:00:42]} 39. Be5 {[%emt 0:00:33]} Rbb7 {[%emt 0:00:29]} 40. Be2 {[%emt 0:00:00]} Qe6 {[%emt 0:00:00]} 41. Ba6 {[%emt 0:08:07]} Rbe7 {[%emt 0:04:14]} 42. Rb1 {[%emt 0:02:01]} Re8 {[%emt 0:03:50]} 43. Bd4 {[%emt 0:04:27]} Rd8 {[%emt 0:02:46]} 44. Rb4 {[%emt 0:01:08]} Qd7 {[%emt 0:02:58]} 45. Qb2 {[%emt 0:01:13]} Ne8 {[%emt 0:01:15]} 46. Be2 {[%emt 0:02:48]} Nf6 {[%emt 0:03:01]} 47. Be5 {[%emt 0:01:08]} Qe7 {[%emt 0:00:56]} 48. Bd4 {[%emt 0:01:25]} g6 {[%emt 0:00:49]} 49. Bb5 {[%emt 0:05:40]} Bxb5 {[%emt 0:03:17]} 50. Rxb5 {[%emt 0:00:04]} Rc8 {[%emt 0:00:17]} 51. Ra5 {[%emt 0:05:25]} Nh5 {[%emt 0:08:47]} 52. Rh3 {[%emt 0:00:21]} Qc7 {[%emt 0:01:00]} 53. Rb5 {[%emt 0:00:14]} Ng7 {[%emt 0:00:37]} 54. Qb3 {[%emt 0:04:12]} Qc6 {[%emt 0:01:30]} 55. Rb8 {[%emt 0:00:14]} Rd7 {[%emt 0:02:42]} 56. Rb5 {[%emt 0:02:22]} Ne6 {[%emt 0:00:29]} 57. a4 {[%emt 0:00:33]} Qc7 {[%emt 0:01:46]} 58. Qc3 {[%emt 0:00:32]} a6 {[%emt 0:00:41]} 59. Rb6 {[%emt 0:00:35]} Nxc5 {[%emt 0:00:22]} 60. Qb4 {[%emt 0:00:30]} Nd3 {[%emt 0:00:31]} 61. Qd2 {[%emt 0:00:30]} Qc1+ {[%emt 0:00:14]} 0-1

[Event "WYCC 2018 G18"]
[Site "Halkidiki"]
[Date "2018.10.26"]
[Round "7"]
[White "Nass, Sara"]
[Black "Jie, Tianhui"]
[Result "1/2-1/2"]
[ECO "C70"]
[WhiteElo "1986"]
[BlackElo "1849"]
[Annotator "NA"]
[PlyCount "111"]
[EventDate "2018.10.20"]
[EventType "swiss"]
[EventCountry "GRE"]
[SourceTitle "playchess.com"]
[Source "ChessBase"]
[SourceQuality "1"]
[TimeControl "40/5400+30:1800+30"]

1. e4 e5 2. Nf3 Nc6 3. Bb5 a6 4. Ba4 b5 5. Bb3 Na5 6. d4 Nxb3 7. axb3 exd4 8. Qxd4 Bb7 9. O-O d6 10. Re1 Ne7 11. Bg5 f6 12. Bd2 Ng6 13. Ba5 Be7 14. Nc3 Qd7 15. Nd5 Bd8 16. Qc3 Rc8 17. Nd4 O-O 18. b4 Kh8 19. Qd2 Ne7 20. Nxe7 Bxe7 21. Rad1 Rce8 22. Qc3 Bd8 23. f3 Re5 24. Nf5 Qc6 25. Qxc6 Bxc6 26. Ne3 Bb7 27. Nd5 c6 28. Bxd8 Rxd8 29. Ne3 d5 30. exd5 cxd5 31. c3 Kg8 32. Nc2 Kf7 33. Kf2 g6 34. Nd4 h5 35. Nb3 Bc8 36. Nc5 g5 37. Nd3 Ree8 38. Rxe8 Rxe8 39. Nc5 Rd8 40. h3 h4 41. Ra1 Rd6 42. Ke3 Kg6 43. f4 d4+ 44. Kf3 dxc3 45. bxc3 gxf4 46. Kxf4 Rd2 47. Kf3 Rc2 48. Ra3 Kh5 49. g3 Bxh3 50. gxh4 Bc8 51. Kg3 f5 52. Nd3 Kh6 53. Nc5 Kh5 54. Nd3 Bb7 55. Nf4+ Kh6 56. Nd5 1/2-1/2

[Event "WYCC 2018 G18"]
[Site "Halkidiki"]
[Date "2018.10.26"]
[Round "7"]
[White "Caballero Quijano, Mitzy Mishell"]
[Black "Dong, Khanh Linh"]
[Result "0-1"]
[ECO "E04"]
[WhiteElo "1956"]
[BlackElo "1879"]
[Annotator "NA"]
[PlyCount "114"]
[EventDate "2018.10.20"]
[EventType "swiss"]
[EventCountry "GRE"]
[SourceTitle "playchess.com"]
[Source "ChessBase"]
[SourceQuality "1"]
[TimeControl "40/5400+30:1800+30"]

1. d4 {[%emt 0:00:00]} d5 {[%emt 0:00:00]} 2. Nf3 {[%emt 0:00:00]} Nf6 {[%emt 0:00:00]} 3. c4 {[%emt 0:00:00]} e6 {[%emt 0:00:00]} 4. g3 {[%emt 0:00:00]} dxc4 {[%emt 0:00:29]} 5. Bg2 {[%emt 0:01:13]} Nc6 {[%emt 0:01:18]} 6. Qa4 {[%emt 0:01:06]} Bd7 {[%emt 0:04:06]} 7. Qxc4 {[%emt 0:00:09]} Bb4+ {[%emt 0:06:38]} 8. Bd2 {[%emt 0:01:28]} Qe7 {[%emt 0:02:21]} 9. O-O {[%emt 0:00:39]} Rd8 {[%emt 0:03:55]} 10. a3 {[%emt 0:02:11]} Bxd2 {[%emt 0:01:20]} 11. Nbxd2 {[%emt 0:00:11]} O-O {[%emt 0:00:45]} 12. Nb3 {[%emt 0:03:54]} b6 {[%emt 0:06:28]} 13. Ne5 {[%emt 0:02:35]} Nxe5 {[%emt 0:03:28]} 14. dxe5 {[%emt 0:00:06]} Nd5 {[%emt 0:00:04]} 15. e4 {[%emt 0:00:57]} b5 {[%emt 0:03:07]} 16. Qc5 {[%emt 0:10:24]} Qxc5 {[%emt 0:03:12]} 17. Nxc5 {[%emt 0:00:06]} Nb6 {[%emt 0:01:16]} 18. b3 {[%emt 0:00:15]} Bc8 {[%emt 0:05:08]} 19. Rfd1 {[%emt 0:00:08]} Nd7 {[%emt 0:02:21]} 20. Nxd7 {[%emt 0:00:48]} Rxd7 {[%emt 0:04:13]} 21. Rxd7 {[%emt 0:01:15]} Bxd7 {[%emt 0:00:05]} 22. Rd1 {[%emt 0:01:52]} Rd8 {[%emt 0:00:42]} 23. Bf1 {[%emt 0:01:19]} c6 {[%emt 0:01:27]} 24. b4 {[%emt 0:02:03]} Kf8 {[%emt 0:01:38]} 25. f4 {[%emt 0:00:12]} Ke7 {[%emt 0:01:26]} 26. Kf2 {[%emt 0:00:07]} a5 {[%emt 0:06:30]} 27. Ke3 {[%emt 0:00:47]} axb4 {[%emt 0:03:36]} 28. axb4 {[%emt 0:00:07]} Ra8 {[%emt 0:00:06]} 29. Kd4 {[%emt 0:02:08]} Ra2 {[%emt 0:01:21]} 30. h3 {[%emt 0:05:31]} Kd8 {[%emt 0:02:32]} 31. g4 {[%emt 0:02:00]} Kc7 {[%emt 0:03:53]} 32. f5 {[%emt 0:06:04]} Rb2 {[%emt 0:01:33]} 33. Kc3 {[%emt 0:01:55]} Rf2 {[%emt 0:01:30]} 34. Rb1 {[%emt 0:08:14]} exf5 {[%emt 0:05:10]} 35. exf5 {[%emt 0:12:16]} g6 {[%emt 0:00:18]} 36. fxg6 {[%emt 0:01:12]} hxg6 {[%emt 0:01:05]} 37. Kd4 {[%emt 0:00:49]} Kb6 {[%emt 0:03:52]} 38. Ke3 {[%emt 0:04:40]} Rh2 {[%emt 0:03:16]} 39. Kf4 {[%emt 0:02:11]} Be6 {[%emt 0:01:41]} 40. Kg5 {[%emt 0:00:00]} Rh1 {[%emt 0:00:00]} 41. Rd1 {[%emt 0:03:10]} c5 {[%emt 0:11:12]} 42. Rd6+ {[%emt 0:26:24]} Kc7 {[%emt 0:01:15]} 43. Bxb5 {[%emt 0:00:07]} cxb4 {[%emt 0:14:31]} 44. h4 {[%emt 0:00:10]} b3 {[%emt 0:00:55]} 45. Bd3 {[%emt 0:19:03]} b2 {[%emt 0:02:53]} 46. Rxe6 {[%emt 0:01:29]} fxe6 {[%emt 0:00:21]} 47. Bxg6 {[%emt 0:00:10]} b1=Q {[%emt 0:00:21]} 48. Bxb1 {[%emt 0:00:05]} Rxb1 {[%emt 0:00:04]} 49. Kf6 {[%emt 0:03:23]} Rb4 {[%emt 0:01:42]} 50. g5 {[%emt 0:00:41]} Rxh4 {[%emt 0:00:17]} 51. Kxe6 {[%emt 0:02:14]} Kd8 {[%emt 0:00:52]} 52. g6 {[%emt 0:01:38]} Ke8 {[%emt 0:00:22]} 53. Kf6 {[%emt 0:04:51]} Kf8 {[%emt 0:04:35]} 54. g7+ {[%emt 0:00:07]} Kg8 {[%emt 0:00:05]} 55. e6 {[%emt 0:00:05]} Rh6+ {[%emt 0:00:51]} 56. Ke7 {[%emt 0:00:16]} Kxg7 {[%emt 0:00:06]} 57. Kd7 {[%emt 0:00:27]} Kf6 {[%emt 0:00:15]} 0-1